lending/lending_fUSD_20260306
["ID","MTS","AMOUNT","RATE_DAILY","PERIOD"]
[407860176,1772837442325,-619.0,0.00031954,2]
[407860177,1772837442334,-1341.0,0.00031954,2]
[407860178,1772837442344,-1279.0,0.00031954,2]
[407860180,1772837442353,-3746.0,0.00031954,2]
[407860181,1772837442362,-414.0,0.00031954,2]
[407860182,1772837442371,-2000.0,0.000321,2]
[407860183,1772837442380,-166.89,0.0003293,2]
[407860184,1772837442390,-150.0,0.00033043,2]
[407860185,1772837442399,-163.28,0.00034,14]
[407860186,1772837442408,-548.82,0.000343,30]
[407860187,1772837442417,-150.0,0.00034696,2]
[407860188,1772837442427,-1500.0,0.00034795,2]
[407860189,1772837442436,-3502.0,0.00034954,2]
[407860190,1772837442445,-619.0,0.00034954,2]
[407860191,1772837442455,-1341.0,0.00034954,2]
[407860192,1772837442464,-1011.794,0.00034954,2]
[407860193,1772837442473,-3746.0,0.00034954,2]
[407860194,1772837442482,-414.0,0.00034954,2]
[407860195,1772837442491,-637.78991472,0.0003497,7]
[407860196,1772837442500,-264.21504644,0.0003497,2]
[407860197,1772837442510,-270.90838707,0.00035054,2]
[407860199,1772837442519,-509.0,0.00035613,21]
[407860202,1772837442529,-500.0,0.00035616,7]
[407860204,1772837442539,-500.0,0.00035616,7]
[407860206,1772837442548,-500.0,0.00035616,7]
[407860208,1772837442557,-500.0,0.00035616,7]
[407860210,1772837442567,-500.0,0.00035616,7]
[407860212,1772837442577,-500.0,0.00035616,7]
[407860214,1772837442586,-500.0,0.00035616,7]
[407860216,1772837442596,-500.0,0.00035616,7]
[407860218,1772837442605,-500.0,0.00035616,7]
[407860220,1772837442614,-500.0,0.00035616,7]
[407860221,1772837442624,-500.0,0.00035616,7]
[407860222,1772837442633,-500.0,0.00035616,7]
[407860223,1772837442645,-500.0,0.00035616,7]
[407860224,1772837442663,-500.0,0.00035616,7]
[407860225,1772837442672,-500.0,0.00035616,7]
[407860226,1772837442682,-500.0,0.00035616,7]
[407860227,1772837442691,-271.43917218,0.00035616,7]
[407860228,1772837442700,-500.0,0.00035616,7]
[407860229,1772837442709,-500.0,0.00035616,7]
[407860230,1772837442718,-500.0,0.00035616,7]
[407860231,1772837442728,-570.0,0.00035616,7]
[407860232,1772837442737,-167.90787599,0.00035677,2]
[407860233,1772837442747,-5527.09654243,0.00035677,2]
[407860234,1772837442755,-230.42471314,0.00035768,2]
[407860235,1772837442765,-2000.0,0.000358,2]
[407860236,1772837442774,-3071.0,0.00035851,5]
[407860237,1772837442783,-2368.14,0.00036115,2]
[407860238,1772837442792,-235.2,0.00036759,2]
[407860239,1772837442801,-241.31160859,0.00036789,7]
[407860240,1772837442810,-163.28,0.000374,14]
[407860241,1772837442819,-3502.0,0.00037954,2]
[407860242,1772837442829,-619.0,0.00037954,2]
[407860243,1772837442839,-1341.0,0.00037954,2]
[407860244,1772837442850,-3746.0,0.00037954,2]
[407860245,1772837442861,-414.0,0.00037954,2]
[407860246,1772837442871,-400.0,0.00039,120]
[407860247,1772837442881,-5527.09654243,0.00039474,2]
[407860248,1772837442890,-2000.0,0.000395,2]
[407860249,1772837442899,-163.28,0.000398,14]
[407860250,1772837442908,-6158.51,0.00039967,2]
[407860251,1772837442918,-200.0,0.0004,120]
[407860252,1772837442928,-296.77015128,0.00040949,2]
[407860253,1772837442938,-3502.0,0.00040954,2]
[407860254,1772837442949,-619.0,0.00040954,2]
[407860255,1772837442960,-1341.0,0.00040954,2]
[407860256,1772837442969,-3746.0,0.00040954,2]
[407860257,1772837442977,-414.0,0.00040954,2]
[407860258,1772837442987,-154.22865418,0.00041068,22]
[407860259,1772837442996,-500.0,0.00041095,7]
[407860260,1772837443005,-500.0,0.00041095,2]
[407860261,1772837443017,-500.0,0.00041095,4]
[407860262,1772837443028,-500.0,0.00041095,2]
[407860263,1772837443039,-7164.15159025,0.00041095,5]
[407860264,1772837443049,-500.0,0.00041095,2]
[407860265,1772837443061,-500.0,0.00041095,14]
[407860266,1772837443072,-300.0,0.00041095,2]
[407860269,1772837443081,-427.13,0.00041095,2]
[407860272,1772837443090,-500.0,0.00041095,2]
[407860273,1772837443099,-1258.44,0.00041095,2]
[407860274,1772837443108,-1372.01,0.00041095,2]
[407860275,1772837443117,-659.22,0.00041095,2]
[407860276,1772837443126,-500.0,0.00041095,2]
[407860277,1772837443136,-500.0,0.00041095,2]
[407860278,1772837443145,-755.91,0.00041095,2]
[407860279,1772837443155,-500.0,0.00041095,2]
[407860280,1772837443164,-150.0,0.00041096,10]
[407860281,1772837443173,-300.0,0.00041096,10]
[407860282,1772837443183,-509.0,0.00041162,26]
[407860283,1772837443193,-500.0,0.00041369,2]
[407860284,1772837443202,-500.0,0.00041369,4]
[407860285,1772837443213,-500.0,0.00041369,2]
[407860286,1772837443223,-500.0,0.00041369,2]
[407860287,1772837443234,-500.0,0.00041369,14]
[407860288,1772837443244,-300.0,0.00041369,2]
[407860289,1772837443254,-427.13,0.00041369,2]
[407860290,1772837443263,-1258.44,0.00041369,2]
[407860291,1772837443273,-1372.01,0.00041369,2]
[407860292,1772837443285,-659.22,0.00041369,2]
[407860293,1772837443297,-500.0,0.00041369,2]
[407860294,1772837443306,-755.91,0.00041369,2]
[407860295,1772837443316,-500.0,0.00041369,2]
[407860296,1772837443326,-167.90787599,0.00041372,15]
[407860297,1772837443335,-230.42471314,0.00041453,3]
[407860298,1772837443344,-163.28,0.000415,14]
[407860299,1772837443354,-500.0,0.00041643,2]
[407860300,1772837443363,-500.0,0.00041643,4]
[407860301,1772837443372,-500.0,0.00041643,2]
[407860302,1772837443382,-500.0,0.00041643,2]
[407860303,1772837443391,-300.0,0.00041643,2]
[407860304,1772837443400,-427.13,0.00041643,2]
[407860305,1772837443409,-1258.44,0.00041643,2]
[407860306,1772837443418,-1372.01,0.00041643,2]
[407860307,1772837443427,-659.22,0.00041643,2]
[407860308,1772837443436,-500.0,0.00041643,2]
[407860309,1772837443445,-755.91,0.00041643,2]
[407860310,1772837443454,-500.0,0.00041643,2]
[407860311,1772837443464,-250.0,0.00041644,10]
[407860312,1772837443473,-2258.0,0.00041917,7]
[407860313,1772837443482,-500.0,0.00041917,2]
[407860314,1772837443491,-500.0,0.00041917,4]
[407860315,1772837443500,-500.0,0.00041917,2]
[407860316,1772837443509,-500.0,0.00041917,2]
[407860317,1772837443518,-300.0,0.00041917,2]
[407860318,1772837443527,-427.13,0.00041917,2]
[407860319,1772837443537,-1258.44,0.00041917,2]
[407860320,1772837443547,-1372.01,0.00041917,2]
[407860321,1772837443558,-659.22,0.00041917,2]
[407860322,1772837443567,-500.0,0.00041917,2]
[407860323,1772837443576,-755.91,0.00041917,2]
[407860324,1772837443585,-500.0,0.00041917,2]
[407860325,1772837443594,-485.832644,0.00041918,10]
[407860326,1772837443603,-432.0,0.00042,120]
[407860327,1772837443613,-500.0,0.00042191,2]
[407860328,1772837443622,-500.0,0.00042191,4]
[407860329,1772837443631,-500.0,0.00042191,2]
[407860330,1772837443641,-500.0,0.00042191,2]
[407860331,1772837443650,-300.0,0.00042191,2]
[407860332,1772837443660,-427.13,0.00042191,2]
[407860333,1772837443669,-1258.44,0.00042191,2]
[407860334,1772837443678,-1372.01,0.00042191,2]
[407860335,1772837443688,-659.22,0.00042191,2]
[407860336,1772837443697,-500.0,0.00042191,2]
[407860337,1772837443706,-755.91,0.00042191,2]
[407860338,1772837443715,-500.0,0.00042191,2]
[407860339,1772837443724,-359.31184279,0.00042192,10]
[407860340,1772837443733,-607.0,0.00042202,2]
[407860341,1772837443743,-150.0,0.00042202,2]
[407860342,1772837443752,-150.0,0.00042202,2]
[407860343,1772837443764,-150.0,0.00042202,2]
[407860344,1772837443779,-150.0,0.00042202,2]
[407860345,1772837443788,-150.0,0.00042202,2]
[407860346,1772837443798,-238.0,0.00042202,2]
[407860347,1772837443807,-190344.5613,0.0004222,7]
[407860348,1772837443816,-150.0,0.00042273,10]
[407860349,1772837443826,-1048.71972246,0.00042458,2]
[407860350,1772837443835,-306.68079331,0.00042458,2]
[407860351,1772837443844,-856.31686265,0.00042458,2]
[407860352,1772837443854,-1933.00131759,0.00042458,2]
[407860353,1772837443863,-307.943616,0.00042458,2]
[407860354,1772837443873,-459.47941262,0.00042458,2]
[407860355,1772837443882,-372.20230898,0.00042458,2]
[407860356,1772837443892,-519.71301933,0.00042458,2]
[407860357,1772837443901,-306.8999554,0.00042458,2]
[407860358,1772837443910,-300.0,0.00042458,2]
[407860359,1772837443919,-1084.42255485,0.00042458,2]
[407860360,1772837443928,-300.0,0.00042458,2]
[407860361,1772837443937,-300.0,0.00042458,2]
[407860362,1772837443946,-1048.71972246,0.00042458,2]
[407860363,1772837443955,-306.68079331,0.00042458,2]
[407860364,1772837443964,-856.31686265,0.00042458,2]
[407860365,1772837443973,-307.943616,0.00042458,2]
[407860366,1772837443982,-459.47941262,0.00042458,2]
[407860367,1772837443991,-498.85696441,0.00042458,2]
[407860368,1772837444000,-732.67973587,0.00042458,2]
[407860369,1772837444009,-306.8999554,0.00042458,2]
[407860370,1772837444021,-507.11197359,0.00042458,2]
[407860371,1772837444030,-1084.42255485,0.00042458,2]
[407860372,1772837444039,-300.0,0.00042458,2]
[407860373,1772837444048,-300.0,0.00042458,2]
[407860374,1772837444057,-300.0,0.00042458,2]
[407860375,1772837444067,-500.0,0.00042465,2]
[407860376,1772837444076,-500.0,0.00042465,4]
[407860377,1772837444085,-500.0,0.00042465,2]
[407860378,1772837444094,-500.0,0.00042465,2]
[407860379,1772837444103,-300.0,0.00042465,2]
[407860380,1772837444112,-427.13,0.00042465,2]
[407860381,1772837444122,-1258.44,0.00042465,2]
[407860382,1772837444132,-1372.01,0.00042465,2]
[407860383,1772837444141,-659.22,0.00042465,2]
[407860384,1772837444151,-500.0,0.00042465,2]
[407860385,1772837444159,-755.91,0.00042465,2]
[407860386,1772837444169,-500.0,0.00042465,2]
[407860387,1772837444178,-532.86,0.000425,7]
[407860388,1772837444187,-344.0,0.00042521,2]
[407860389,1772837444197,-500.0,0.00042739,2]
[407860390,1772837444207,-500.0,0.00042739,4]
[407860391,1772837444215,-500.0,0.00042739,2]
[407860392,1772837444225,-256.34675864,0.00042739,2]
[407860393,1772837444234,-300.0,0.00042739,2]
[407860394,1772837444243,-427.13,0.00042739,2]
[407860395,1772837444253,-1258.44,0.00042739,2]
[407860396,1772837444261,-1372.01,0.00042739,2]
[407860397,1772837444270,-659.22,0.00042739,2]
[407860398,1772837444279,-566.84376161,0.00042739,2]
[407860399,1772837444288,-755.91,0.00042739,2]
[407860400,1772837444298,-500.0,0.00042739,2]
[407860401,1772837444307,-4000.0,0.0004274,14]
[407860402,1772837444316,-200.0,0.000428,24]
[407860403,1772837444325,-250.0,0.00042821,10]
[407860404,1772837444335,-1400.0,0.000429,15]
[407860405,1772837444344,-651.0,0.00042919,2]
[407860406,1772837444353,-150.0,0.00042919,2]
[407860407,1772837444362,-150.0,0.00042919,2]
[407860408,1772837444371,-207.0,0.00042919,2]
[407860409,1772837444381,-2934.32179539,0.00042943,10]
[407860410,1772837444391,-500.0,0.00043013,2]
[407860411,1772837444401,-500.0,0.00043013,4]
[407860412,1772837444410,-500.0,0.00043013,2]
[407860413,1772837444420,-300.0,0.00043013,2]
[407860414,1772837444429,-427.13,0.00043013,2]
[407860415,1772837444438,-1258.44,0.00043013,2]
[407860416,1772837444447,-1372.01,0.00043013,2]
[407860417,1772837444456,-659.22,0.00043013,2]
[407860418,1772837444465,-755.91,0.00043013,2]
[407860419,1772837444475,-350.62201914,0.00043013,2]
[407860420,1772837444484,-31834.46929376,0.00043054,7]
[407860421,1772837444493,-36874.52001824,0.00043054,7]
[407860422,1772837444502,-152.0,0.00043069,3]
[407860423,1772837444511,-2000.0,0.000432,2]
[407860424,1772837444520,-800.0,0.00043203,16]
[407860425,1772837444530,-800.0,0.00043203,16]
[407860426,1772837444539,-800.0,0.00043203,16]
[407860427,1772837444548,-800.0,0.00043203,16]
[407860428,1772837444557,-800.0,0.00043203,16]
[407860429,1772837444566,-800.0,0.00043203,16]
[407860430,1772837444576,-800.0,0.00043203,16]
[407860431,1772837444585,-800.0,0.00043203,16]
[407860432,1772837444594,-5527.09654243,0.0004327,15]
[407860433,1772837444604,-613.83938841,0.00043287,2]
[407860434,1772837444613,-606.22007349,0.00043287,4]
[407860435,1772837444623,-500.0,0.00043287,2]
[407860436,1772837444632,-300.0,0.00043287,2]
[407860437,1772837444641,-427.13,0.00043287,2]
[407860438,1772837444650,-1258.44,0.00043287,2]
[407860439,1772837444659,-1372.01,0.00043287,2]
[407860440,1772837444668,-659.22,0.00043287,2]
[407860441,1772837444677,-755.91,0.00043287,2]
[407860442,1772837444686,-350.0,0.00043368,10]
[407860443,1772837444696,-304.013617,0.000434,10]
[407860444,1772837444705,-312.0500191,0.00043507,2]
[407860445,1772837444714,-500.0,0.00043561,2]
[407860446,1772837444723,-300.0,0.00043561,2]
[407860447,1772837444732,-427.13,0.00043561,2]
[407860448,1772837444741,-1258.44,0.00043561,2]
[407860449,1772837444750,-1372.01,0.00043561,2]
[407860450,1772837444759,-659.22,0.00043561,2]
[407860451,1772837444768,-755.91,0.00043561,2]
[407860452,1772837444777,-1244.02,0.00043835,2]
[407860453,1772837444787,-25000.0,0.00043835,15]
[407860454,1772837444796,-500.0,0.00043835,2]
[407860455,1772837444805,-300.0,0.00043835,2]
[407860456,1772837444815,-427.13,0.00043835,2]
[407860457,1772837444824,-1258.44,0.00043835,2]
[407860458,1772837444833,-500.0,0.00043835,120]
[407860459,1772837444842,-1372.01,0.00043835,2]
[407860460,1772837444851,-659.22,0.00043835,2]
[407860461,1772837444860,-755.91,0.00043835,2]
[407860462,1772837444869,-164.83157446,0.00043836,5]
[407860463,1772837444877,-20000.0,0.00043836,120]
[407860464,1772837444886,-450.0,0.00043916,10]
[407860465,1772837444895,-3502.0,0.00043954,2]
[407860466,1772837444904,-619.0,0.00043954,2]
[407860467,1772837444913,-1341.0,0.00043954,2]
[407860468,1772837444922,-3746.0,0.00043954,2]
[407860469,1772837444931,-414.0,0.00043954,2]
[407860470,1772837444940,-552.91405644,0.00044,2]
[407860471,1772837444949,-400.0,0.00044,120]
[407860472,1772837444958,-500.0,0.00044109,2]
[407860473,1772837444967,-300.0,0.00044109,2]
[407860474,1772837444977,-427.13,0.00044109,2]
[407860475,1772837444986,-1258.44,0.00044109,2]
[407860476,1772837444995,-1372.01,0.00044109,2]
[407860477,1772837445004,-659.22,0.00044109,2]
[407860478,1772837445013,-755.91,0.00044109,2]
[407860479,1772837445027,-155.0,0.00044159,30]
[407860480,1772837445037,-183.04,0.00044194,120]
[407860481,1772837445046,-500.0,0.00044246,120]
[407860482,1772837445056,-500.0,0.00044383,2]
[407860483,1772837445066,-300.0,0.00044383,2]
[407860484,1772837445075,-427.13,0.00044383,2]
[407860485,1772837445086,-1258.44,0.00044383,2]
[407860486,1772837445098,-1372.01,0.00044383,2]
[407860487,1772837445108,-659.22,0.00044383,2]
[407860488,1772837445118,-755.91,0.00044383,2]
[407860489,1772837445128,-616.72974495,0.00044464,10]
[407860490,1772837445137,-183.04,0.00044468,120]
[407860491,1772837445149,-594.0,0.00044619,2]
[407860492,1772837445160,-150.0,0.00044619,2]
[407860493,1772837445169,-150.0,0.00044619,2]
[407860494,1772837445180,-150.0,0.00044619,2]
[407860495,1772837445191,-150.0,0.00044619,2]
[407860496,1772837445200,-150.0,0.00044619,2]
[407860497,1772837445210,-150.0,0.00044619,2]
[407860498,1772837445220,-150.0,0.00044619,2]
[407860499,1772837445229,-291.0,0.00044619,2]
[407860500,1772837445238,-500.0,0.00044657,2]
[407860501,1772837445248,-427.13,0.00044657,2]
[407860502,1772837445258,-1258.44,0.00044657,2]
[407860503,1772837445268,-500.0,0.00044657,120]
[407860504,1772837445278,-1372.01,0.00044657,2]
[407860505,1772837445287,-659.22,0.00044657,2]
[407860506,1772837445297,-755.91,0.00044657,2]
[407860507,1772837445306,-5204.8036775,0.00044663,2]
[407860508,1772837445315,-52625.2357717,0.00044663,2]
[407860509,1772837445324,-183.04,0.00044742,120]
[407860510,1772837445334,-1000.0,0.00044744,14]
[407860511,1772837445343,-800.0,0.00044788,16]
[407860512,1772837445352,-800.0,0.00044788,16]
[407860513,1772837445361,-800.0,0.00044788,16]
[407860514,1772837445370,-800.0,0.00044788,16]
[407860515,1772837445379,-800.0,0.00044788,16]
[407860516,1772837445389,-800.0,0.00044788,16]
[407860517,1772837445398,-800.0,0.00044788,16]
[407860518,1772837445407,-800.0,0.00044788,16]
[407860519,1772837445416,-200.0,0.000448,27]
[407860521,1772837445425,-847.0,0.00044841,16]
[407860522,1772837445434,-2001.1457,0.00044853,4]
[407860523,1772837445444,-5677.4206,0.00044853,4]
[407860524,1772837445453,-500.0,0.00044931,2]
[407860525,1772837445463,-427.13,0.00044931,2]
[407860526,1772837445472,-1258.44,0.00044931,2]
[407860527,1772837445481,-1372.01,0.00044931,2]
[407860528,1772837445491,-659.22,0.00044931,2]
[407860529,1772837445500,-755.91,0.00044931,2]
[407860530,1772837445509,-44630.93550085,0.00044999,10]
[407860531,1772837445519,-2453.5228079,0.00045,14]
[407860532,1772837445527,-30581.07714999,0.00045,2]
[407860533,1772837445537,-175.69729978,0.00045,13]
[407860534,1772837445546,-610.03281414,0.00045,10]
[407860535,1772837445556,-236.11779888,0.00045,10]
[407860536,1772837445565,-261.67,0.00045,7]
[407860537,1772837445575,-152.03,0.00045,14]
[407860538,1772837445585,-273463.02638306,0.0004501,5]
[407860539,1772837445594,-183.04,0.00045016,120]
[407860540,1772837445603,-156.4697347,0.00045043,2]
[407860541,1772837445613,-500.0,0.00045068,120]
[407860542,1772837445623,-1011.93485607,0.00045092,5]
[407860543,1772837445632,-505.73681112,0.00045092,5]
[407860544,1772837445641,-150.0,0.00045165,7]
[407860545,1772837445650,-150.0,0.00045165,7]
[407860546,1772837445660,-150.0,0.00045165,7]
[407860547,1772837445670,-210.0,0.00045165,7]
[407860548,1772837445679,-500.0,0.00045205,2]
[407860549,1772837445688,-427.13,0.00045205,2]
[407860550,1772837445697,-1258.44,0.00045205,2]
[407860551,1772837445706,-1372.01,0.00045205,2]
[407860552,1772837445715,-659.22,0.00045205,2]
[407860553,1772837445724,-755.91,0.00045205,2]
[407860554,1772837445734,-2803.0,0.00045257,16]
[407860555,1772837445743,-183.04,0.0004529,120]
[407860556,1772837445753,-156.4697347,0.00045317,2]
[407860557,1772837445762,-2803.0,0.00045433,16]
[407860558,1772837445772,-500.0,0.00045479,2]
[407860559,1772837445781,-427.13,0.00045479,2]
[407860560,1772837445790,-1258.44,0.00045479,2]
[407860561,1772837445799,-500.0,0.00045479,120]
[407860562,1772837445808,-1372.01,0.00045479,2]
[407860563,1772837445818,-659.22,0.00045479,2]
[407860564,1772837445827,-755.91,0.00045479,2]
[407860565,1772837445836,-5800.0,0.00045504,14]
[407860566,1772837445846,-183.04,0.00045564,120]
[407860567,1772837445855,-156.4697347,0.00045591,2]
[407860568,1772837445864,-1000.0,0.00045623,14]
[407860569,1772837445874,-273.0,0.00045682,7]
[407860570,1772837445883,-737.0,0.000457,30]
[407860571,1772837445893,-160.0,0.00045711,16]
[407860572,1772837445902,-238.29154999,0.00045753,2]
[407860573,1772837445912,-427.13,0.00045753,2]
[407860574,1772837445921,-1258.44,0.00045753,2]
[407860575,1772837445931,-1372.01,0.00045753,2]
[407860576,1772837445940,-659.22,0.00045753,2]
[407860577,1772837445949,-755.91,0.00045753,2]
[407860578,1772837445959,-183.04,0.00045838,120]
[407860579,1772837445968,-1000.0,0.00045844,14]
[407860580,1772837445978,-160.0,0.00045849,16]
[407860582,1772837445987,-5800.0,0.0004586,14]
[407860584,1772837445995,-156.4697347,0.00045865,2]
[407860585,1772837446004,-500.0,0.0004589,120]
[407860587,1772837446014,-1000.0,0.00045891,14]
[407860589,1772837446027,-150.0,0.00045999,2]
[407860592,1772837446036,-306.77047522,0.00046,2]
[407860593,1772837446046,-21495.41002266,0.00046,5]
[407860596,1772837446056,-427.13,0.00046027,2]
[407860597,1772837446067,-1258.44,0.00046027,2]
[407860600,1772837446077,-1372.01,0.00046027,2]
[407860602,1772837446087,-659.22,0.00046027,2]
[407860604,1772837446097,-755.91,0.00046027,2]
[407860606,1772837446107,-259.0,0.00046027,7]
[407860608,1772837446116,-183.04,0.00046112,120]
[407860617,1772837446275,-156.4697347,0.00046139,2]
[407860618,1772837446286,-150.0,0.00046143,10]
[407860619,1772837446295,-150.0,0.00046143,10]
[407860620,1772837446305,-150.0,0.00046143,10]
[407860621,1772837446314,-150.0,0.00046143,10]
[407860622,1772837446324,-150.0,0.00046143,10]
[407860623,1772837446333,-150.0,0.00046143,10]
[407860624,1772837446343,-150.0,0.00046143,10]
[407860625,1772837446352,-150.0,0.00046143,10]
[407860626,1772837446362,-150.0,0.00046143,10]
[407860627,1772837446371,-150.0,0.00046143,10]
[407860628,1772837446380,-150.0,0.00046143,10]
[407860629,1772837446390,-150.0,0.00046143,10]
[407860630,1772837446399,-150.0,0.00046143,10]
[407860631,1772837446408,-150.0,0.00046143,10]
[407860632,1772837446418,-150.0,0.00046143,10]
[407860633,1772837446427,-150.0,0.00046143,10]
[407860634,1772837446437,-150.0,0.00046143,10]
[407860635,1772837446446,-150.0,0.00046143,10]
[407860636,1772837446455,-150.0,0.00046143,10]
[407860637,1772837446465,-150.0,0.00046143,10]
[407860638,1772837446474,-273.0,0.00046143,10]
[407860639,1772837446484,-151.0,0.00046143,10]
[407860640,1772837446493,-151.0,0.00046143,10]
[407860641,1772837446503,-151.0,0.00046143,10]
[407860642,1772837446512,-151.0,0.00046143,10]
[407860643,1772837446522,-151.0,0.00046143,10]
[407860644,1772837446532,-151.0,0.00046143,10]
[407860645,1772837446541,-151.0,0.00046143,10]
[407860646,1772837446551,-151.0,0.00046143,10]
[407860647,1772837446560,-151.0,0.00046143,10]
[407860648,1772837446569,-151.0,0.00046143,10]
[407860649,1772837446579,-151.0,0.00046143,10]
[407860650,1772837446588,-151.0,0.00046143,10]
[407860651,1772837446598,-151.0,0.00046143,10]
[407860652,1772837446607,-151.0,0.00046143,10]
[407860653,1772837446617,-151.0,0.00046143,10]
[407860654,1772837446627,-151.0,0.00046143,10]
[407860655,1772837446636,-151.0,0.00046143,10]
[407860656,1772837446645,-151.0,0.00046143,10]
[407860657,1772837446655,-151.0,0.00046143,10]
[407860658,1772837446664,-151.0,0.00046143,10]
[407860659,1772837446673,-151.0,0.00046143,10]
[407860660,1772837446682,-151.0,0.00046143,10]
[407860661,1772837446692,-151.0,0.00046143,10]
[407860662,1772837446701,-151.0,0.00046143,10]
[407860663,1772837446710,-151.0,0.00046143,10]
[407860664,1772837446720,-151.0,0.00046143,10]
[407860665,1772837446730,-151.0,0.00046143,10]
[407860666,1772837446739,-151.0,0.00046143,10]
[407860667,1772837446748,-151.0,0.00046143,10]
[407860668,1772837446758,-151.0,0.00046143,10]
[407860669,1772837446767,-151.0,0.00046143,10]
[407860670,1772837446777,-151.0,0.00046143,10]
[407860671,1772837446786,-151.0,0.00046143,10]
[407860672,1772837446795,-151.0,0.00046143,10]
[407860673,1772837446804,-151.0,0.00046143,10]
[407860674,1772837446813,-151.0,0.00046143,10]
[407860675,1772837446823,-151.0,0.00046143,10]
[407860676,1772837446832,-151.0,0.00046143,10]
[407860677,1772837446841,-151.0,0.00046143,10]
[407860678,1772837446850,-151.0,0.00046143,10]
[407860679,1772837446859,-151.0,0.00046143,10]
[407860680,1772837446868,-151.0,0.00046143,10]
[407860681,1772837446877,-151.0,0.00046143,10]
[407860682,1772837446887,-151.0,0.00046143,10]
[407860683,1772837446896,-151.0,0.00046143,10]
[407860684,1772837446905,-151.0,0.00046143,10]
[407860685,1772837446914,-151.0,0.00046143,10]
[407860686,1772837446924,-151.0,0.00046143,10]
[407860687,1772837446933,-151.0,0.00046143,10]
[407860688,1772837446941,-151.0,0.00046143,10]
[407860689,1772837446950,-151.0,0.00046143,10]
[407860690,1772837446959,-151.0,0.00046143,10]
[407860691,1772837446968,-151.0,0.00046143,10]
[407860692,1772837446977,-151.0,0.00046143,10]
[407860693,1772837446986,-151.0,0.00046143,10]
[407860694,1772837446995,-212.0,0.00046143,10]
[407860695,1772837447005,-205.08567403,0.00046167,18]
[407860696,1772837447014,-171.46,0.00046219,13]
[407860697,1772837447027,-171.46,0.00046219,13]
[407860698,1772837447036,-171.46,0.00046219,13]
[407860699,1772837447045,-171.46,0.00046219,13]
[407860700,1772837447054,-177.13,0.00046219,13]
[407860701,1772837447064,-177.13,0.00046219,13]
[407860702,1772837447073,-427.13,0.00046301,2]
[407860703,1772837447083,-1258.44,0.00046301,2]
[407860704,1772837447093,-500.0,0.00046301,120]
[407860705,1772837447102,-1372.01,0.00046301,2]
[407860706,1772837447111,-659.22,0.00046301,2]
[407860707,1772837447120,-755.91,0.00046301,2]
[407860708,1772837447129,-152.0,0.00046321,7]
[407860709,1772837447138,-160.0,0.00046365,16]
[407860710,1772837447148,-400.0,0.0004637,3]
[407860711,1772837447156,-400.0,0.0004637,3]
[407860712,1772837447166,-539.90470534,0.0004637,3]
[407860713,1772837447176,-600.0,0.0004637,3]
[407860714,1772837447186,-183.04,0.00046386,120]
[407860715,1772837447194,-160.0,0.00046393,16]